bitfinex/quotes_ETHUSD_20220226
["timestamp","ask_amount","ask_price","bid_price","bid_amount"]
[1645870806407,0.3,2762.6,2761.8,4.16]
[1645870806807,1.54665649,2762.7,2761.8,4.16]
[1645870807014,1.96199243,2762.7,2761.8,4.16]
[1645870807612,0.3628,2762.6,2761.8,4.16]
[1645870807812,0.36704473,2762.6,2761.8,4.16]
[1645870808612,0.00477156,2762.3,2761.8,4.16]
[1645870809062,0.00477156,2762.3,2762.0,0.03264936]
[1645870809463,0.04092649,2762.7,2762.0,0.03264936]
[1645870809864,0.00477159,2762.3,2762.0,0.03264936]
[1645870810063,0.00477159,2762.3,2762.1,1.24400761]
[1645870810667,0.04092649,2762.7,2762.1,1.24400761]
[1645870811266,0.00477156,2762.3,2762.1,4.74400761]
[1645870811466,0.00477156,2762.3,2762.1,1.24400761]
[1645870812066,0.04092649,2762.7,2762.1,1.24400761]
[1645870812270,0.00477477,2762.3,2762.1,1.24400761]
[1645870812568,1.76030222,2763.5,2762.0,2.70226196]
[1645870812811,2.06030222,2763.5,2762.1,3.5]
[1645870813006,0.33184222,2763.4,2762.1,3.5]
[1645870813208,0.78304235,2763.4,2762.1,3.5]
[1645870813409,0.3011206,2763.4,2762.1,3.5]
[1645870813612,0.3011206,2763.4,2762.4,1.16151971]
[1645870813808,0.51083713,2763.4,2762.2,0.63381]
[1645870814011,0.87363713,2763.4,2762.2,0.63381]
[1645870814312,0.87363713,2763.4,2762.2,0.0325108]
[1645870814314,0.3628,2763.1,2762.2,0.0325108]
[1645870814513,0.3639206,2763.1,2762.2,0.0325108]
[1645870814714,0.85833272,2763.1,2762.2,0.0325108]
[1645870814912,1.15833272,2763.1,2762.2,0.0325108]
[1645870815312,0.85833272,2763.1,2762.2,0.0325108]
[1645870815512,0.85833272,2763.1,2762.3,1.08797175]
[1645870815713,0.85833272,2763.1,2762.2,0.0325108]
[1645870815915,0.85833272,2763.1,2762.5,0.00169503]
[1645870816755,0.85833272,2763.1,2762.2,0.0325108]
[1645870816961,0.85833272,2763.1,2762.2,1.15751026]
[1645870817154,0.00477638,2762.9,2762.6,0.00477693]
[1645870817355,0.00589698,2762.9,2762.6,0.00477693]
[1645870817957,0.0011206,2762.9,2762.2,0.0325108]
[1645870818158,0.0011206,2762.9,2762.4,1.17609121]
[1645870818359,0.30589693,2762.9,2762.6,0.00477689]
[1645870818560,0.00589693,2762.9,2762.6,0.00477689]
[1645870819264,0.0011206,2762.9,2762.2,0.0325108]
[1645870819465,0.00589693,2762.9,2762.6,0.00477689]
[1645870819864,0.30589693,2762.9,2762.0,1.36744915]
[1645870820065,0.30589693,2762.9,2762.0,1.16267226]
[1645870820308,0.00422215,2762.8,2762.0,1.16267226]
[1645870820508,0.0011206,2762.8,2762.0,1.16267226]
[1645870820910,0.0011206,2762.8,2762.1,0.63382]
[1645870821317,0.0011206,2762.8,2762.4,1.02761967]
[1645870821809,0.0011206,2762.8,2762.1,0.63382]
[1645870822010,0.0011206,2762.8,2762.0,1.16267226]
[1645870822211,0.0011206,2762.8,2762.0,1.79652226]
[1645870822611,0.00534275,2762.8,2762.0,1.79652226]
[1645870823010,0.0011206,2762.8,2762.0,1.79652226]
[1645870823211,0.0011206,2762.8,2762.3,0.0047771]
[1645870823411,0.0011206,2762.8,2762.3,1.39961953]
[1645870824062,0.0011206,2762.8,2762.3,1.39484243]
[1645870824264,0.0011206,2762.8,2762.4,0.00477701]
[1645870825669,0.0011206,2762.8,2762.5,0.00477698]
[1645870826468,0.0011206,2762.8,2762.2,1.11233811]
[1645870826663,0.0011206,2762.8,2762.5,0.00443788]
[1645870827703,0.0011206,2762.8,2762.2,1.11233811]
[1645870827905,0.0011206,2762.8,2762.5,0.00443788]
[1645870828910,0.0011206,2762.8,2762.2,1.11233811]
[1645870829910,0.0011206,2762.8,2762.2,1.07982731]
[1645870830311,0.0011206,2762.8,2762.1,0.03223374]
[1645870830912,0.00534275,2762.8,2762.1,0.03223374]
[1645870831111,0.0011206,2762.8,2762.1,0.03223374]
[1645870831557,0.0011206,2762.8,2762.3,0.00459645]
[1645870832558,0.0011206,2762.8,2762.1,0.03223374]
[1645870832756,0.50536958,2763.1,2762.4,0.00459639]
[1645870832757,0.00459559,2762.9,2762.4,0.00459639]
[1645870832957,0.0011206,2762.8,2762.4,0.00459639]
[1645870833756,0.0011206,2762.8,2762.1,0.03223374]
[1645870833956,0.0011206,2762.8,2762.5,0.00459636]
[1645870834961,0.0011206,2762.8,2762.1,0.39503374]
[1645870835217,0.0011206,2762.8,2762.5,0.00444242]
[1645870836116,0.0011206,2762.8,2762.1,0.03223374]
[1645870836519,0.3639206,2762.8,2762.1,0.03223374]
[1645870836717,0.6639206,2762.8,2762.1,0.03223374]
[1645870836922,0.85794463,2762.8,2762.1,0.03223374]
[1645870837122,1.40081463,2762.8,2762.1,0.03223374]
[1645870837320,1.76361463,2762.8,2762.1,0.03223374]
[1645870837519,1.40081463,2762.8,2762.1,0.03223374]
[1645870837719,1.2067906,2762.8,2762.1,0.03223374]
[1645870837925,0.0011206,2762.8,2762.1,0.03223374]
[1645870839564,0.0011206,2762.8,2762.1,0.39503374]
[1645870839762,0.0011206,2762.8,2762.5,1.37194336]
[1645870839962,0.0011206,2762.8,2762.6,0.03223374]
[1645870843809,1.35994477,2762.7,2762.3,4.2581]
[1645870844013,1.35994477,2762.4,2762.3,4.2581]
[1645870844213,0.0011206,2762.4,2762.3,4.2581]
[1645870844613,1.37512952,2762.4,2762.3,4.2581]
[1645870845419,0.0011206,2762.4,2762.3,4.2581]
[1645870849367,0.0011206,2762.4,2762.3,14.5801]
[1645870851417,1.37512952,2762.4,2762.3,14.5801]
[1645870852416,0.0011206,2762.4,2762.3,14.5801]
[1645870853019,1.37591766,2762.4,2762.3,14.5801]
[1645870853215,0.0011206,2762.4,2762.3,14.5801]
[1645870854076,0.0011206,2762.4,2762.2,0.00446498]
[1645870854077,7.6542206,2762.4,2762.2,0.00446498]
[1645870854277,7.6542206,2762.4,2761.6,0.25]
[1645870854278,10.8628,2762.3,2761.6,0.25]
[1645870854476,10.8628,2762.3,2761.0,50.0]
[1645870854477,7.19636089,2761.7,2761.0,50.0]
[1645870854676,1.3752183,2761.4,2761.0,50.0]
[1645870854979,0.3011206,2761.4,2761.0,50.0]
[1645870855278,0.0011206,2761.4,2761.0,50.0]
[1645870859011,0.0011206,2761.4,2761.1,1.21774469]
[1645870859511,0.0011206,2761.4,2761.1,1.22220714]
[1645870859911,0.0011206,2761.4,2761.1,0.00446245]
[1645870860315,0.0011206,2761.4,2761.0,50.0]
[1645870860516,0.0011206,2761.4,2761.1,0.00479048]
[1645870861569,0.0011206,2761.4,2761.0,50.0]
[1645870861768,0.0011206,2761.4,2761.1,0.00479048]
[1645870862668,0.0011206,2761.4,2761.0,50.0]
[1645870862872,0.0011206,2761.4,2761.1,0.00479048]
[1645870863870,0.0011206,2761.4,2761.0,50.0]
[1645870864081,0.0011206,2761.4,2761.1,0.00479048]
[1645870864775,4.0241206,2761.4,2761.1,0.00479048]
[1645870864974,5.8365106,2761.4,2761.0,50.0]
[1645870865213,6.8365106,2761.4,2761.0,50.0]
[1645870865413,6.8365106,2761.4,2761.1,0.00479048]
[1645870866013,3.3365106,2761.4,2761.1,0.00479048]
[1645870866215,5.0,2761.3,2761.0,50.0]
[1645870866422,4.023,2761.2,2761.0,50.0]
[1645870866618,0.90636,2761.1,2761.0,50.0]
[1645870866816,1.4304806,2761.1,2761.0,50.0]
[1645870867417,4.9304806,2761.1,2761.0,50.0]
[1645870867621,4.9304806,2761.1,2761.0,44.56087]
[1645870867817,17.4724806,2761.1,2761.0,23.85948744]
[1645870868120,17.63491623,2761.1,2761.0,21.52160444]
[1645870868316,18.63491623,2761.1,2761.0,16.08194444]
[1645870868517,17.99922154,2761.1,2761.0,16.08194444]
[1645870868717,12.33913873,2761.1,2761.0,10.64283444]
[1645870868977,11.81239779,2761.1,2761.0,10.64283444]
[1645870869168,11.81239779,2761.1,2761.0,8.19256118]
[1645870869468,8.9724806,2761.1,2761.0,8.19256118]
[1645870869870,11.81220588,2761.1,2761.0,8.19256118]
[1645870870071,8.9724806,2761.1,2761.0,8.19256118]
[1645870871475,2.4304806,2761.1,2761.0,8.19256118]
[1645870871874,0.5241206,2761.1,2761.0,8.19256118]
[1645870873014,0.0011206,2761.1,2761.0,8.19256118]
[1645870873215,0.0011206,2761.1,2761.0,8.33736118]
[1645870873612,0.0011206,2761.1,2761.0,8.19256118]
[1645870879167,5.5241206,2761.1,2761.0,8.19256118]
[1645870879365,5.5241206,2761.1,2761.0,2.75356118]
[1645870879366,8.43668837,2761.1,2761.0,2.75356118]
[1645870879565,8.43668837,2761.1,2761.0,2.01615808]
[1645870879566,9.599124,2761.1,2761.0,2.01615808]
[1645870879765,11.35300964,2761.1,2761.0,2.01615808]
[1645870879965,7.0,2761.0,2760.8,0.0112187]
[1645870880211,10.5828989,2761.0,2760.9,0.00446013]
[1645870880409,15.28591477,2761.0,2760.9,0.00446013]
[1645870880608,4.0,2760.9,2760.8,0.0112187]
[1645870880809,5.8241206,2760.9,2760.8,0.0112187]
[1645870881011,6.14245437,2760.9,2760.8,0.01567889]
[1645870881612,6.14245437,2760.9,2760.3,0.25]
[1645870881613,5.5,2760.8,2760.3,0.25]
[1645870881811,5.5,2760.8,2759.6,3.121]
[1645870881812,5.0,2760.4,2759.6,3.121]
[1645870882015,2.33631,2760.3,2759.6,3.121]
[1645870882317,2.84207784,2760.3,2759.6,3.121]
[1645870882515,0.98753422,2760.3,2759.6,3.121]
[1645870882717,2.28753422,2760.3,2759.6,3.121]
[1645870882916,1.28753422,2760.3,2759.6,3.121]
[1645870883116,1.81325,2760.1,2759.6,3.121]
[1645870883318,0.523,2760.0,2759.8,0.00446011]
[1645870883519,0.5241206,2760.0,2759.8,0.00446011]
[1645870883966,0.0011206,2760.0,2759.8,0.00446011]
[1645870884362,0.0011206,2760.0,2759.3,3.5]
[1645870884563,0.0011206,2760.0,2759.2,5.0474]
[1645870884764,0.0011206,2760.0,2759.8,0.00446014]
[1645870885565,0.0011206,2760.0,2759.4,1.10600847]
[1645870885865,0.0011206,2760.0,2759.8,0.00446014]
[1645870886464,0.0011206,2760.0,2759.9,1.41435622]
[1645870886665,0.0011206,2760.0,2759.9,1.77715622]
[1645870887566,0.523,2761.0,2760.0,7.00171862]
[1645870887567,1.42923,2761.0,2760.0,7.00171862]
[1645870887808,1.72923,2761.0,2760.0,0.00171862]
[1645870888006,1.0286826,2761.0,2760.0,0.00171862]
[1645870888410,0.3,2761.0,2760.6,1.05244725]
[1645870888611,1.3,2761.3,2760.4,0.00430912]
[1645870888808,0.90615,2761.2,2760.4,0.00430912]
[1645870889212,0.90615,2761.2,2760.1,3.5]
[1645870889414,0.90615,2761.2,2760.7,0.00430895]
[1645870890312,0.90615,2761.2,2760.0,6.90821862]
[1645870890814,0.90615,2761.2,2760.7,0.00431749]
[1645870891217,0.523,2761.1,2760.7,0.00431749]
[1645870891484,0.98731983,2761.1,2760.7,0.00431749]
[1645870891670,1.15047531,2761.1,2760.0,6.90821862]
[1645870891871,0.90628,2760.8,2760.7,0.00433166]
[1645870892172,1.41760016,2760.8,2760.7,0.00433166]
[1645870892770,1.41760016,2760.8,2760.0,6.90821862]
[1645870893171,1.41760016,2760.8,2760.6,0.00433159]
[1645870893776,0.3,2760.8,2760.6,0.00433159]
[1645870893973,0.3,2760.8,2760.1,0.3628]
[1645870894180,0.3,2761.0,2760.1,0.3628]
[1645870894479,0.3,2761.0,2760.6,0.00433185]
[1645870894680,0.3,2761.1,2760.6,0.00433185]
[1645870894979,1.12106709,2761.1,2760.6,0.00433185]
[1645870895216,1.12106709,2761.1,2760.1,3.4966]
[1645870895217,1.20618,2761.1,2760.1,3.4966]
[1645870895413,1.40190341,2761.1,2760.1,3.4966]
[1645870895613,1.40190341,2761.1,2760.7,0.0044651]
[1645870896422,1.40190341,2761.1,2760.4,1.12858524]
[1645870896616,1.40190341,2761.1,2760.7,0.00446515]
[1645870896617,1.20618,2761.1,2760.7,0.00446515]
[1645870897316,0.3,2761.1,2760.7,0.00446515]
[1645870897516,0.3,2761.2,2760.7,0.00446515]
[1645870897718,0.3,2761.3,2760.5,3.5]
[1645870897918,2.72007466,2761.4,2760.7,0.00445604]
[1645870898119,2.42007466,2761.4,2760.7,0.00445604]
[1645870898317,1.42007466,2761.4,2760.7,0.00445604]
[1645870898962,1.42007466,2761.4,2760.9,1.10954562]
[1645870899167,1.42007466,2761.4,2760.7,0.00445598]
[1645870899967,1.42007466,2761.4,2760.3,3.5]
[1645870900173,1.42007466,2761.4,2760.5,1.33704766]
[1645870900174,0.90618,2761.1,2760.5,1.33704766]
[1645870900467,0.90618,2761.1,2760.7,0.00445598]
[1645870900669,1.20618,2761.1,2760.7,0.00445598]
[1645870900866,1.38149952,2761.1,2760.7,0.00445598]
[1645870901068,1.20618,2761.1,2760.7,0.00445598]
[1645870901267,1.20618,2761.1,2760.3,3.5]
[1645870901470,0.3,2761.1,2760.7,0.00445644]
[1645870901868,1.484711,2761.3,2760.7,0.00445644]
[1645870902267,0.3,2761.3,2760.7,0.00445644]
[1645870902467,0.3,2761.3,2760.8,1.19005107]
[1645870902719,3.5813283,2761.4,2760.8,1.19005107]
[1645870903126,3.49081215,2761.4,2760.8,1.19005107]
[1645870903831,1.3752183,2761.3,2760.8,1.19005107]
[1645870904228,2.41559385,2761.4,2760.8,1.19005107]
[1645870904429,1.41559385,2761.4,2760.8,1.19005107]
[1645870904627,1.11559385,2761.4,2760.8,1.19005107]
[1645870905029,1.11559385,2761.4,2760.7,0.0044566]
[1645870905226,1.20611,2761.4,2760.7,0.0044566]
[1645870905426,0.3,2761.4,2760.7,0.0044566]
[1645870905626,2.6752183,2761.5,2760.7,0.0044566]
[1645870906028,2.6752183,2761.5,2760.4,0.1448]
[1645870906029,2.6752183,2761.5,2760.9,1.44141275]
[1645870906229,1.3,2761.5,2760.9,1.44141275]
[1645870906471,1.3,2761.5,2760.7,0.00445981]
[1645870906472,2.6752183,2761.5,2760.7,0.00445981]
[1645870906670,1.6752183,2761.5,2760.7,0.00445981]
[1645870906866,2.6752183,2761.5,2760.7,0.00445981]
[1645870907066,1.6752183,2761.5,2760.7,0.00445981]
[1645870907268,2.6752183,2761.5,2760.4,0.1448]
[1645870907569,1.6752183,2761.5,2760.9,1.16291595]
[1645870907769,2.6752183,2761.5,2760.9,1.16291595]
[1645870907967,1.6752183,2761.5,2760.9,1.16291595]
[1645870908169,2.6752183,2761.5,2760.9,1.16291595]
[1645870908372,1.6752183,2761.5,2760.4,0.1448]
[1645870908569,2.6752183,2761.5,2760.4,0.1448]
[1645870908770,1.3752183,2761.5,2760.7,0.0044598]
[1645870908969,1.0,2761.5,2760.7,0.0028688]
[1645870909172,1.3,2761.5,2760.7,0.0028688]
[1645870909371,1.20606,2761.5,2760.7,4.64422661]
[1645870909569,1.20606,2761.5,2760.7,1.14135781]
[1645870911131,1.20606,2761.5,2760.5,0.3628]
[1645870911426,1.20606,2761.5,2760.4,0.5076]
[1645870911626,1.20606,2761.5,2760.5,5.03107302]
[1645870911830,1.3752183,2761.3,2760.3,3.5]
[1645870912026,1.20615,2761.3,2760.3,3.5]
[1645870912226,1.20615,2761.3,2760.6,1.41877448]
[1645870912838,0.3,2761.3,2760.6,1.41877448]
[1645870913329,2.6752183,2761.4,2760.6,1.41877448]
[1645870913529,2.6752183,2761.4,2760.6,1.42356256]
[1645870913729,1.0,2761.4,2760.6,1.42356256]
[1645870913979,1.0,2761.4,2760.6,0.00478808]
[1645870914174,2.3380183,2761.5,2760.6,0.00478808]
[1645870914381,1.3752183,2761.1,2760.2,1.4986]
[1645870914576,2.6443183,2761.1,2760.2,1.2486]
[1645870914777,2.2610183,2761.0,2760.2,1.2486]
[1645870915076,1.8982183,2761.0,2760.6,0.00478813]
[1645870915676,1.8982183,2761.0,2760.2,2.59039158]
[1645870916079,1.8982183,2761.0,2760.6,0.00478791]
[1645870916477,0.90633,2760.8,2760.6,0.00478791]
[1645870916883,0.90633,2760.8,2760.2,1.2486]
[1645870917080,0.90633,2760.8,2760.6,0.00478784]
[1645870918110,0.90633,2760.8,2760.2,1.2486]
[1645870918311,0.90633,2760.8,2760.6,0.00478784]
[1645870919316,0.90633,2760.8,2760.2,1.2486]
[1645870919519,0.90633,2760.8,2760.6,0.00478784]
[1645870920519,0.90633,2760.8,2760.2,1.2486]
[1645870920919,0.90633,2760.8,2760.6,0.00469927]
[1645870921658,0.90633,2760.8,2760.2,1.2486]
[1645870921857,0.90633,2760.8,2760.6,0.00469927]
[1645870922861,0.90633,2760.8,2760.2,1.2486]
[1645870923263,0.90633,2760.8,2760.6,0.00469927]
[1645870924063,0.90633,2760.8,2760.2,1.2486]
[1645870924265,0.90633,2760.8,2760.6,0.00478784]
[1645870925208,0.90633,2760.8,2760.2,1.2486]
[1645870925611,0.90633,2760.8,2760.6,0.00478784]
[1645870926110,1.20633,2760.8,2760.6,0.00478784]
[1645870926514,1.39784538,2760.8,2760.2,1.2486]
[1645870926715,1.39784538,2760.8,2760.6,0.00478784]
[1645870927717,1.39784538,2760.8,2760.2,1.2486]
[1645870927916,1.39784538,2760.8,2760.6,0.00469927]
[1645870928816,1.39784538,2760.8,2760.2,1.2486]
[1645870929066,1.76064538,2760.8,2760.2,1.2486]
[1645870929267,1.76064538,2760.8,2760.6,0.00469927]
[1645870929268,1.39784538,2760.8,2760.6,0.00469927]
[1645870929870,1.09784538,2760.8,2760.6,0.00469927]
[1645870930067,0.90633,2760.8,2760.2,1.2486]
[1645870930269,0.90633,2760.8,2760.6,0.00469927]
[1645870930470,2.2815483,2760.8,2760.6,0.00469927]
[1645870931170,2.5815483,2760.8,2760.6,0.00469927]
[1645870931373,2.5815483,2760.8,2760.2,1.2486]
[1645870931583,3.5815483,2760.8,2760.6,0.00478784]
[1645870932271,3.5815483,2760.8,2760.6,0.00323617]
[1645870932476,3.5815483,2760.8,2760.2,1.2486]
[1645870932710,3.5815483,2760.8,2760.6,0.00478462]
[1645870933417,2.2815483,2760.8,2760.6,0.00478462]
[1645870933613,0.90633,2760.8,2760.3,1.32464159]
[1645870934522,0.90633,2760.8,2760.2,1.2486]
[1645870934720,1.20633,2760.8,2760.2,1.2486]
[1645870936320,1.56913,2760.8,2760.2,1.2486]
[1645870936560,1.76318291,2760.8,2760.4,0.00478474]
[1645870937259,1.76318291,2760.8,2760.2,1.2486]
[1645870937460,1.76318291,2760.8,2760.5,0.00478468]
[1645870937662,1.40038291,2760.8,2760.5,0.00478468]
[1645870938463,1.40038291,2760.8,2760.2,1.2486]
[1645870938675,1.40038291,2760.8,2760.5,0.0047847]
[1645870939669,1.40038291,2760.8,2760.2,1.2486]
[1645870939873,2.77560121,2760.8,2760.5,0.0047847]
[1645870940071,1.40038291,2760.8,2760.5,0.0047847]
[1645870940318,2.40038291,2760.8,2760.5,0.0047847]
[1645870940516,2.77560121,2760.8,2760.5,0.0047847]
[1645870940718,2.40038291,2760.8,2760.5,0.0047847]
[1645870940919,2.40038291,2760.8,2760.2,1.2486]
[1645870941119,1.40038291,2760.8,2760.5,0.0047847]
[1645870942122,0.3628,2760.7,2760.0,57.19011862]
[1645870942319,1.40038291,2760.8,2760.5,0.00168343]
[1645870943223,1.40038291,2760.8,2760.1,1.53134448]
[1645870943722,0.90633,2760.8,2760.1,1.53134448]
[1645870943990,1.6,2760.9,2760.1,1.53134448]
[1645870944179,1.0,2761.0,2760.1,1.53134448]
[1645870944380,1.3752183,2761.0,2760.1,3.02154448]
[1645870944582,3.5814283,2761.1,2760.2,1.89414448]
[1645870944780,3.5814283,2761.1,2760.5,1.27994641]
[1645870945982,3.9442283,2761.1,2760.5,0.00478092]
[1645870946183,1.81268,2760.9,2760.5,0.00478092]
[1645870946381,3.1878983,2760.9,2760.5,0.00478092]
[1645870946581,2.11268,2760.9,2760.5,0.00478092]
[1645870946781,2.11268,2760.9,2760.1,1.1274]
[1645870946782,2.27131911,2760.9,2760.1,1.1274]
[1645870947085,3.64653741,2760.9,2760.5,0.00478081]
[1645870947282,0.90633,2760.8,2760.5,0.00478081]
[1645870948029,0.90633,2760.8,2760.2,1.22605953]
[1645870948330,0.90633,2760.8,2760.5,0.00478076]
[1645870949330,0.90633,2760.8,2760.2,1.22605953]
[1645870949633,0.90633,2760.8,2760.5,0.00478076]
[1645870950536,0.90633,2760.8,2760.2,1.22605953]
[1645870950835,0.90633,2760.8,2760.5,0.00478076]
[1645870951663,0.90633,2760.8,2760.1,1.13050043]
[1645870951862,0.90633,2760.8,2760.2,1.53129751]
[1645870952063,0.90633,2760.8,2760.5,0.00478076]
[1645870952866,0.90633,2760.8,2760.1,1.13050043]
[1645870953066,0.90633,2760.8,2760.2,1.53129319]
[1645870953267,0.90633,2760.8,2760.5,0.00478076]
[1645870954068,0.90633,2760.8,2760.2,0.00310043]
[1645870954272,0.90633,2760.8,2760.1,2.65867054]
[1645870954468,0.90633,2760.8,2760.5,0.00478076]
[1645870955309,0.90633,2760.8,2760.2,0.00310043]
[1645870955509,0.90633,2760.8,2760.5,0.00478076]
[1645870955912,0.90633,2760.8,2760.5,0.00336075]
[1645870956516,0.90633,2760.8,2760.3,1.53126983]
[1645870956715,0.90633,2760.8,2760.4,1.53126983]
[1645870956915,0.90633,2760.8,2760.1,1.1274]
[1645870957114,0.90633,2760.8,2760.2,1.53127264]
[1645870959575,2.2815483,2760.8,2760.2,1.53127264]
[1645870960279,2.19066426,2761.0,2760.5,0.01264058]
[1645870960280,1.82786426,2761.0,2760.5,0.01264058]
[1645870960477,2.84430408,2761.4,2760.6,1.53127264]
[1645870960478,0.00477892,2761.4,2760.6,1.53127264]
[1645870960678,0.00477892,2761.4,2760.7,3.6448]
[1645870960876,0.00477892,2761.4,2760.8,1.53127264]
[1645870961076,0.00477892,2761.4,2760.9,3.6448]
[1645870961281,1.82786426,2762.1,2761.0,3.95684201]
[1645870961498,1.82786426,2762.3,2761.2,0.3628]
[1645870961681,0.01911698,2761.7,2761.4,7.0]
[1645870961879,0.01911698,2761.7,2761.5,1.53127264]
[1645870962280,1.698e-05,2761.7,2761.5,5.33127264]
[1645870962479,1.82786426,2762.5,2761.5,5.33127264]
[1645870962480,0.00419787,2762.4,2761.6,1.89407264]
[1645870962723,0.00419787,2762.4,2761.7,5.34807264]
[1645870962925,0.00419787,2762.6,2761.7,3.454]
[1645870963125,1.82786426,2762.8,2761.7,3.454]
[1645870963327,0.00419787,2762.7,2761.7,3.454]
[1645870963526,0.00419787,2762.7,2762.2,1.08875138]
[1645870963729,0.00419787,2762.8,2762.2,1.08875138]
[1645870963930,0.00309267,2762.3,2762.2,1.08875138]
[1645870964528,0.00309267,2762.3,2761.7,6.7123]
[1645870964932,0.00419787,2762.7,2761.8,3.5]
[1645870965127,0.00477635,2762.1,2761.8,3.5]
[1645870965327,0.00477635,2762.1,2761.7,7.0751]
[1645870965829,0.00477635,2762.1,2761.8,1.32071342]
[1645870966129,0.00419787,2762.8,2761.8,1.32071342]
[1645870966330,0.00477641,2762.0,2761.8,4.82071342]
[1645870966583,0.00477641,2762.0,2761.8,1.32071342]
[1645870967384,0.00419787,2762.8,2761.8,1.32071342]
[1645870967585,0.00477641,2762.0,2761.9,3.5]
[1645870967789,0.00477641,2762.0,2761.8,1.32071342]
[1645870967983,0.00477641,2762.0,2761.8,4.82071342]
[1645870968586,1.37123216,2762.8,2761.8,4.82071342]
[1645870970525,1.37123216,2762.8,2761.8,1.32071342]
[1645870970722,1.67123216,2762.8,2761.8,1.32071342]
[1645870971522,0.3628,2762.7,2761.8,1.32071342]
[1645870971726,1.26849,2762.7,2761.8,1.32071342]
[1645870972323,0.0047729,2762.4,2761.8,1.32071342]
[1645870972727,0.0047729,2762.4,2761.7,6.5675]
[1645870973326,0.00419787,2762.6,2761.7,6.5675]
[1645870973728,0.00477302,2762.2,2761.7,6.5675]
[1645870974593,0.00419787,2762.6,2761.7,6.5675]
[1645870974791,0.00477308,2762.1,2761.7,6.5675]
[1645870975796,0.00419787,2762.6,2761.7,6.5675]
[1645870975995,0.00477312,2762.0,2761.9,1.43409662]
[1645870976397,0.00477312,2762.0,2761.7,6.5675]
[1645870977003,0.36699787,2762.7,2761.7,6.5675]
[1645870977200,0.00477315,2762.0,2761.7,10.0675]
[1645870977400,0.00477315,2762.0,2761.9,1.20668196]
[1645870978219,0.36699787,2762.7,2761.7,6.5675]
[1645870978421,0.00477308,2762.1,2761.7,6.5675]
[1645870979424,2.63972216,2762.7,2761.7,6.5675]
[1645870979628,0.00477312,2762.0,2761.7,6.5675]
[1645870980625,2.27268787,2762.7,2761.8,1.16966593]
[1645870980827,0.00477315,2762.0,2761.8,1.16966593]
[1645870981667,0.01908885,2762.5,2761.8,1.16966593]
[1645870981866,1.27268787,2762.7,2761.7,6.5675]
[1645870982069,0.00477312,2762.0,2761.7,6.5675]
[1645870982667,0.00181811,2762.0,2761.7,6.5675]
[1645870982874,3.63972216,2762.7,2761.9,1.0781793]
[1645870983073,2.73403216,2762.7,2761.9,1.0781793]
[1645870983274,0.36699787,2762.7,2761.9,1.0781793]
[1645870983475,1.36699787,2762.7,2761.9,1.0781793]
[1645870983674,1.00419787,2762.7,2761.9,1.0781793]
[1645870983874,0.00419787,2762.7,2761.9,1.0781793]
[1645870984075,0.30419787,2762.8,2761.9,1.0781793]
[1645870984574,0.00307505,2762.4,2761.9,1.0781793]
[1645870985319,1.77421671,2762.9,2762.0,4.0]
[1645870985518,1.77421671,2762.9,2761.9,1.0781793]
[1645870985723,0.00307505,2762.3,2761.9,1.0281793]
[1645870986520,0.25419787,2762.9,2761.9,1.0281793]
[1645870986721,1.88112363,2763.0,2761.9,1.0281793]
[1645870986920,0.90565,2762.9,2761.9,1.0281793]
[1645870987120,0.3628,2762.8,2761.9,1.0281793]
[1645870987522,0.6628,2762.8,2761.9,1.0281793]
[1645870987721,0.85426656,2762.8,2761.9,1.0281793]
[1645870988024,2.22130085,2762.8,2761.7,6.5675]
[1645870988971,0.3628,2762.7,2761.7,6.5675]
[1645870989178,1.85850085,2762.8,2761.7,6.5675]
[1645870989179,0.00465374,2762.4,2761.7,6.5675]
[1645870990679,0.00465385,2762.2,2761.7,6.5675]
[1645870990878,0.00465385,2762.2,2761.8,1.40404061]
[1645870991279,0.53327981,2762.6,2761.8,1.40404061]
[1645870991478,0.51884385,2762.6,2761.8,1.40404061]
[1645870991679,0.00465388,2762.1,2761.8,1.40404061]
[1645870992479,0.51884385,2762.6,2761.8,1.40404061]
[1645870992918,0.00446986,2762.1,2761.8,1.40404061]
[1645870993719,1.67121073,2762.8,2761.8,1.40404061]
[1645870993919,0.66697644,2762.8,2761.8,1.40404061]
[1645870994126,0.00446986,2762.1,2761.8,1.40404061]
[1645870994923,0.00417644,2762.5,2761.8,1.40404061]
[1645870995123,0.00446986,2762.1,2761.8,1.40404061]
[1645870996124,1.4220889,2762.6,2761.8,1.40404061]
[1645870996571,0.00448228,2762.1,2761.7,6.5675]
[1645870997374,1.4220889,2762.6,2761.7,6.5675]
[1645870997672,0.00448223,2762.1,2761.9,1.37272406]
[1645870998472,0.00417644,2762.5,2761.9,1.37272406]
[1645870998673,3.78494675,2762.6,2761.7,6.5675]
[1645870998874,0.00448234,2762.1,2761.7,6.5675]
[1645870999678,0.00417644,2762.5,2761.7,6.5675]
[1645870999879,1.37121073,2762.5,2761.8,1.12452832]
[1645871000079,0.00448139,2762.1,2761.8,1.12452832]
[1645871000927,0.00417644,2762.4,2761.8,1.12452832]
[1645871001130,1.36703429,2762.5,2761.8,1.12452832]
[1645871001328,0.00448145,2762.1,2761.8,1.12452832]
[1645871001527,0.00448145,2762.1,2761.7,6.5675]
[1645871002127,1.37121073,2762.4,2761.7,6.5675]
[1645871002328,1.67121073,2762.4,2761.7,6.5675]
[1645871002527,0.00448139,2762.1,2761.7,7.72351283]
[1645871003430,1.83802179,2762.4,2761.7,7.72351283]
[1645871003631,0.00448144,2762.1,2761.7,7.72351283]
[1645871004078,0.00448144,2762.1,2761.7,4.46521283]
[1645871004476,1.66703429,2762.2,2761.7,4.46521283]
[1645871004677,1.66703429,2762.2,2761.7,1.15601283]
[1645871004876,0.00448144,2762.1,2761.7,1.15601283]
[1645871005876,1.66703429,2762.2,2761.7,1.15601283]
[1645871006076,1.37151573,2762.1,2761.7,1.15601283]
[1645871006277,1.37151573,2762.1,2761.7,1.15500044]
[1645871007076,1.36703429,2762.1,2761.7,1.15500044]
[1645871007276,1.37151573,2762.1,2761.7,1.15500044]
[1645871007735,1.36703429,2761.9,2761.6,1.24078231]
[1645871007921,4.86703429,2761.8,2761.6,0.00448231]
[1645871008121,1.66703429,2761.8,2761.2,3.9462]
[1645871008323,1.66703429,2761.8,2761.1,6.58655169]
[1645871008324,1.82739623,2761.8,2761.3,1.53079757]
[1645871008522,1.36703429,2761.7,2761.6,0.00448214]
[1645871009028,1.88934194,2761.8,2761.6,0.00448214]
[1645871009226,1.37647527,2761.7,2761.6,0.00448214]
[1645871009426,1.37647527,2761.7,2761.1,3.3373]